fUST/lending_fUST_20260630
["ID","MTS","AMOUNT","RATE_DAILY","PERIOD"]
[426735266,1782767444000,-500.0,0.00022684,2]
[426735263,1782767444000,-500.0,0.00022684,2]
[426735267,1782767444000,-500.0,0.00022684,2]
[426735261,1782767444000,-500.0,0.00022684,2]
[426735259,1782767444000,-500.0,0.00022684,2]
[426735291,1782767529000,187.0,0.00030122,30]
[426735374,1782768633000,-993.17138481,0.000197,2]
[426735377,1782768633000,-2232.4009802,0.000197,2]
[426735368,1782768633000,-430.00398361,0.000197,2]
[426735360,1782768633000,-774.00717049,0.000197,2]
[426735366,1782768633000,-787.68206073,0.000197,2]
[426735364,1782768633000,-1360.18783739,0.000197,2]
[426735362,1782768633000,-1376.01274755,0.000197,2]
[426735376,1782768633000,-1551.83028876,0.000197,2]
[426735370,1782768633000,-310.36605775,0.000197,2]
[426735372,1782768633000,-558.65890395,0.000197,2]
[426735383,1782768633000,-705.47400928,0.00020472,2]
[426735381,1782768633000,-177.79594086,0.00020472,2]
[426735387,1782768633000,-637.846,0.00020472,2]
[426735379,1782768633000,-214.1340643,0.00020472,2]
[426735389,1782768633000,-242.69617875,0.00020472,2]
[426735391,1782768633000,-519.62375244,0.00020472,2]
[426735394,1782768633000,-1440.02627334,0.00020472,2]
[426735395,1782768633000,-742.59725216,0.00020472,2]
[426735398,1782768633000,-676.04791732,0.00020472,2]
[426735400,1782768633000,-1403.25086765,0.00020472,2]
[426735402,1782768633000,-417.3554992,0.00020472,2]
[426735385,1782768633000,-373.63383775,0.00020472,2]
[426735556,1782768638000,-500.0,0.00021546,2]
[426735561,1782768638000,-500.0,0.00021546,2]
[426735564,1782768638000,-500.0,0.00021546,2]
[426735550,1782768638000,-258.44223887,0.00021546,2]
[426735554,1782768638000,-500.0,0.00021546,2]
[426735543,1782768638000,-3419.71763728,0.00020472,2]
[426735558,1782768638000,-500.0,0.00021546,2]
[426735552,1782768638000,-500.0,0.00021546,2]
[426735569,1782768638000,-500.0,0.00021546,2]
[426735545,1782768638000,-178.1611368,0.0002102,2]
[426735567,1782768638000,-500.0,0.00021546,2]
[426735548,1782768638000,-356.3222734,0.0002102,2]
[426735573,1782768638000,-500.0,0.00021546,2]
[426735587,1782768638000,-922.4592571,0.0002189,2]
[426735571,1782768638000,-500.0,0.00021546,2]
[426735589,1782768638000,-500.0,0.00022583,2]
[426735583,1782768638000,-503.41706117,0.00021547,2]
[426735591,1782768638000,-500.0,0.00022683,2]
[426735593,1782768638000,-500.0,0.00022889,2]
[426735581,1782768638000,-500.0,0.00021546,2]
[426735579,1782768638000,-447.25187268,0.00021546,2]
[426735585,1782768638000,-1713.13862033,0.0002189,2]
[426735595,1782768638000,-70965.64761466,0.0002289,2]
[426735600,1782768638000,-448.524,0.0002289,2]
[426735577,1782768638000,-500.0,0.00021546,2]
[426735598,1782768638000,-796.51025489,0.0002289,2]
[426735575,1782768638000,-500.0,0.00021546,2]
[426735814,1782768640000,-1813.42407202,0.0002289,2]
[426735812,1782768640000,-873.25941512,0.0002289,2]
[426736134,1782768643000,-40508.98692406,0.0002289,2]
[426736139,1782768643000,-635.60939374,0.0002289,2]
[426736141,1782768643000,-443.0,0.0002289,2]
[426736146,1782768643000,-317.989,0.0002289,2]
[426736137,1782768643000,-575.41076325,0.0002289,2]
[426736144,1782768643000,-1197.38471589,0.0002289,2]
[426736132,1782768643000,-1329.07474658,0.0002289,2]
[426736125,1782768643000,-500.0,0.0002289,2]
[426736495,1782768646000,-1061.3633948,0.0002289,2]
[426736513,1782768646000,-996.42995017,0.00024,2]
[426736515,1782768646000,-503.14194125,0.00024,2]
[426736503,1782768646000,-13554.37727593,0.0002289,2]
[426736507,1782768646000,-164.250437,0.0002378,2]
[426736511,1782768646000,-174.52224743,0.000239,2]
[426736509,1782768646000,-300.0,0.0002378,2]
[426736505,1782768646000,-2212.78764764,0.0002289,2]
[426737856,1782768710000,-500.0,0.00020471,2]
[426737857,1782768727000,-500.0,0.00020471,2]
[426737858,1782768744000,-500.0,0.00020471,2]
[426737860,1782768760000,-500.0,0.00020471,2]
[426737861,1782768884000,1561.89,0.00030137,30]
[426739279,1782770253000,43080.925114,7.6e-05,2]
[426739280,1782770261000,10462.16111191,0.00012,2]
[426739657,1782771043000,-2216.0,0.00027186,2]
[426739658,1782771043000,-186.0,0.00027186,2]
[426739656,1782771043000,-222.58840572,0.00027,2]
[426739647,1782771043000,-169.2312883,0.0002448,7]
[426739649,1782771043000,-500.0,0.00025,2]
[426739652,1782771043000,-272.14,0.00025585,2]
[426739659,1782771043000,-158.35,0.00027397,2]
[426739651,1782771043000,-900.0,0.00025469,3]
[426739655,1782771043000,-169.23128833,0.0002688,7]
[426739645,1782771043000,-169.2312883,0.00024,7]
[426739648,1782771043000,-521.07251125,0.0002465,2]
[426739646,1782771043000,-335.04379955,0.00024034,7]
[426739654,1782771043000,-169.2312883,0.0002592,7]
[426739653,1782771043000,-380.0,0.00025889,2]
[426739660,1782771043000,-1000.0,0.00028,2]
[426739642,1782771043000,-904.29202396,0.000215,2]
[426739643,1782771043000,-2212.78764764,0.0002289,2]
[426739650,1782771043000,-169.2312883,0.000252,7]
[426739662,1782771043000,-1000.0,0.00028,2]
[426739644,1782771043000,-472.35756964,0.00024,2]
[426739663,1782771043000,-152.96,0.00029043,15]
[426739666,1782771043000,-187.81,0.00029043,15]
[426739685,1782771043000,-460.16489719,0.00029075,2]
[426739683,1782771043000,-500.0,0.00029075,2]
[426739684,1782771043000,-500.0,0.00029075,2]
[426739678,1782771043000,-500.0,0.00029075,2]
[426739672,1782771043000,-500.0,0.00029075,2]
[426739682,1782771043000,-500.0,0.00029075,2]
[426739680,1782771043000,-500.0,0.00029075,2]
[426739673,1782771043000,-500.0,0.00029075,2]
[426739674,1782771043000,-500.0,0.00029075,2]
[426739671,1782771043000,-296.29167205,0.00029075,2]
[426739670,1782771043000,-332.89910695,0.00029075,2]
[426739676,1782771043000,-500.0,0.00029075,2]
[426739668,1782771043000,-500.0,0.00029075,2]
[426739669,1782771043000,-500.0,0.00029075,2]
[426739667,1782771043000,-500.0,0.00029075,2]
[426739661,1782771043000,-1000.0,0.00028,2]
[426739664,1782771043000,-163.16,0.00029043,15]
[426739665,1782771043000,-440.53,0.00029043,15]
[426739675,1782771043000,-500.0,0.00029075,2]
[426739901,1782772246000,-188.48402722,0.00029192,2]
[426739900,1782772246000,-188.48402725,0.00029184,2]
[426739899,1782772246000,-300.0,0.00029183,2]
[426739894,1782772246000,-152.96,0.00029093,15]
[426739898,1782772246000,-163.16,0.00029143,15]
[426739891,1782772246000,-565.27239984,0.00028284,14]
[426739895,1782772246000,-163.16,0.00029093,15]
[426739892,1782772246000,-235.73447939,0.00028753,2]
[426739893,1782772246000,-294.75269089,0.00028753,2]
[426739890,1782772246000,-186.0,0.00027094,2]
[426739903,1782772246000,-163.16,0.00029193,15]
[426739897,1782772246000,-152.96,0.00029143,15]
[426739909,1782772246000,-188.48402722,0.00029215,2]
[426739896,1782772246000,-164.0,0.000291,15]
[426739902,1782772246000,-152.96,0.00029193,15]
[426739915,1782772246000,-158.84768524,0.0002928,2]
[426739916,1782772246000,-180.90956721,0.00029283,2]
[426739913,1782772246000,-500.0,0.0002928,2]
[426739917,1782772246000,-8028.92200233,0.00029284,2]
[426739914,1782772246000,-429.62916721,0.0002928,2]
[426739912,1782772246000,-500.0,0.0002928,2]
[426739904,1782772246000,-188.48402722,0.000292,2]
[426739911,1782772246000,-163.16,0.00029243,15]
[426739907,1782772246000,-69.05457877,0.00029207,2]
[426739906,1782772246000,-119.42944845,0.00029207,2]
[426739905,1782772246000,-469.0,0.000292,2]
[426739908,1782772246000,-340.10337116,0.00029215,2]
[426739910,1782772246000,-152.96,0.00029243,15]
[426740169,1782773847000,21733.1846367,7.6e-05,2]
[426740177,1782774148000,-1257.83605532,0.00024,2]
[426740179,1782774198000,300.0,0.00030137,30]
[426740180,1782774207000,300.0,0.00030137,30]
[426740181,1782774215000,300.0,0.00030137,30]
[426740182,1782774223000,300.0,0.00030137,30]
[426740184,1782774240000,300.0,0.00030137,30]
[426740185,1782774250000,300.0,0.00030137,30]
[426740186,1782774294000,300.0,0.00030137,30]
[426740187,1782774309000,300.0,0.00030137,30]
[426740188,1782774316000,300.0,0.00030137,30]
[426740189,1782774324000,249.0631854,0.00030137,30]
[426740193,1782774447000,-186.0,0.00026489,2]
[426740194,1782774447000,-1654.168,0.00027089,2]
[426740195,1782774452000,-186.0,0.00027089,2]
[426740197,1782774497000,-288.32336673,0.00027266,2]
[426740239,1782774632000,-627.16913353,0.00027819,2]
[426740237,1782774632000,-4309.5616311,0.00027541,2]
[426740859,1782774643000,-129.949736,0.00028099,2]
[426740857,1782774643000,-4372.83086647,0.00027819,2]
[426740895,1782774644000,-452.455362,0.00028198,7]
[426740905,1782774644000,-500.0,0.00028198,2]
[426740894,1782774644000,-452.455362,0.00028198,7]
[426740886,1782774644000,-452.455362,0.00028198,7]
[426740890,1782774644000,-452.455362,0.00028198,7]
[426740884,1782774644000,-452.455362,0.00028198,7]
[426740903,1782774644000,-180.90956721,0.00028198,2]
[426740892,1782774644000,-452.455362,0.00028198,7]
[426740888,1782774644000,-452.455362,0.00028198,7]
[426740878,1782774644000,-239.001935,0.00028198,7]
[426740876,1782774644000,-151.0,0.00028198,7]
[426740869,1782774644000,-151.0,0.00028198,7]
[426740867,1782774644000,-151.0,0.00028198,7]
[426740880,1782774644000,-452.455362,0.00028198,7]
[426740873,1782774644000,-151.0,0.00028198,7]
[426740871,1782774644000,-151.0,0.00028198,7]
[426740865,1782774644000,-151.0,0.00028198,7]
[426740861,1782774644000,-170.050264,0.00028099,2]
[426740863,1782774644000,-1000.0,0.000281,2]
[426740882,1782774644000,-452.455362,0.00028198,7]
[426740901,1782774644000,-452.455362,0.00028198,7]
[426740909,1782774644000,-500.0,0.00028198,2]
[426740899,1782774644000,-452.455362,0.00028198,7]
[426740897,1782774644000,-452.455362,0.00028198,7]
[426740934,1782774644000,-452.455362,0.00028199,7]
[426740933,1782774644000,-452.455362,0.00028199,7]
[426740935,1782774644000,-83.52015048,0.00028199,7]
[426740931,1782774644000,-452.455362,0.00028199,7]
[426740930,1782774644000,-452.455362,0.00028199,7]
[426740929,1782774644000,-151.0,0.00028199,7]
[426740927,1782774644000,-151.0,0.00028199,7]
[426740924,1782774644000,-500.0,0.00028198,2]
[426740932,1782774644000,-452.455362,0.00028199,7]
[426740922,1782774644000,-500.0,0.00028198,2]
[426740915,1782774644000,-363.07631088,0.00028198,2]
[426740916,1782774644000,-500.0,0.00028198,2]
[426740926,1782774644000,-151.0,0.00028199,7]
[426740928,1782774644000,-151.0,0.00028199,7]
[426740920,1782774644000,-500.0,0.00028198,2]
[426740911,1782774644000,-500.0,0.00028198,2]
[426740918,1782774644000,-500.0,0.00028198,2]
[426740912,1782774644000,-500.0,0.00028198,2]
[426740907,1782774644000,-500.0,0.00028198,2]
[426741233,1782774647000,-1000.0,0.000282,2]
[426741231,1782774647000,-1000.0,0.000282,2]
[426741234,1782774647000,-1000.0,0.000282,2]
[426741236,1782774647000,-33.7872218,0.000282,2]
[426741224,1782774647000,-368.93521152,0.00028199,7]
[426741243,1782774647000,-966.2127782,0.000282,2]
[426741227,1782774647000,-452.45536,0.00028199,7]
[426741225,1782774647000,-452.455362,0.00028199,7]
[426741252,1782774647000,-152.0,0.0002863,7]
[426741229,1782774647000,-1000.0,0.000282,2]
[426741256,1782774647000,-152.0,0.0002863,7]
[426741245,1782774647000,-164.068075,0.00028226,2]
[426741260,1782774647000,-152.0,0.0002863,7]
[426741271,1782774647000,-80.78306095,0.00029064,21]
[426741266,1782774647000,-166.13,0.00029014,15]
[426741246,1782774647000,-547.87888223,0.00028283,14]
[426741264,1782774647000,-284.0,0.0002863,7]
[426741248,1782774647000,-152.0,0.0002863,7]
[426741268,1782774647000,-199.36,0.00029014,15]
[426741258,1782774647000,-152.0,0.0002863,7]
[426741254,1782774647000,-152.0,0.0002863,7]
[426741250,1782774647000,-152.0,0.0002863,7]
[426741269,1782774647000,-166.13,0.00029064,15]
[426741262,1782774647000,-152.0,0.0002863,7]
[426742083,1782774995000,-5000.0,0.00026642,2]
[426742086,1782775062000,-812.91407043,0.00026642,2]
[426742120,1782775660000,180.89560011,0.0003,120]
[426742163,1782775832000,-4089.777004,0.00028137,2]
[426742162,1782775832000,-11378.41871887,0.00028137,2]
[426742161,1782775832000,-300.0,0.00028136,2]
[426742160,1782775832000,-186.0,0.00026911,2]
[426742176,1782775839000,-212.72331145,0.00028136,2]
[426742175,1782775839000,-252.32,0.00028136,2]
[426742173,1782775839000,-500.0,0.00028136,2]
[426742174,1782775839000,-247.68,0.00028136,2]
[426742200,1782775847000,-287.27668855,0.00028136,2]
[426742201,1782775847000,-468.54331145,0.00028136,2]
[426742202,1782775979000,180.8956001,0.0003,120]
[426742220,1782776297000,180.89560011,0.0003,120]
[426742318,1782777031000,-500.0,0.00025732,2]
[426742312,1782777031000,-500.0,0.00025732,2]
[426742316,1782777031000,-500.0,0.00025732,2]
[426742311,1782777031000,-500.0,0.00025732,2]
[426742314,1782777031000,-500.0,0.00025732,2]
[426742305,1782777031000,-96.70565789,0.0002545,2]
[426742300,1782777031000,-494.67951103,0.00025118,2]
[426742303,1782777031000,-198.047033,0.0002545,2]
[426742301,1782777031000,-357.9773558,0.00025283,2]
[426742309,1782777031000,-500.0,0.00025732,2]
[426742298,1782777031000,-380.0,0.00025113,2]
[426742294,1782777031000,-2580.6552055,0.00024853,2]
[426742296,1782777031000,-235.73447939,0.00025045,2]
[426742292,1782777031000,-300.0,0.00024852,2]
[426742291,1782777031000,-186.518827,0.00024791,2]
[426742289,1782777031000,-254.848038,0.00024149,2]
[426742285,1782777031000,-272.14,0.00023401,2]
[426742277,1782777031000,-3513.88783549,0.00021908,2]
[426742283,1782777031000,-1486.11216451,0.00021908,2]
[426742275,1782777031000,-2427.56921177,0.00021689,2]
[426742307,1782777031000,-180.90956721,0.00025732,2]
[426742319,1782777031000,-500.0,0.00025732,2]
[426742287,1782777031000,-3872.7901499,0.00024038,2]
[426742330,1782777031000,-500.0,0.00025732,2]
[426742323,1782777031000,-500.0,0.00025732,2]
[426742344,1782777031000,-500.0,0.00025732,2]
[426742342,1782777031000,-500.0,0.00025732,2]
[426742340,1782777031000,-500.0,0.00025732,2]
[426742353,1782777031000,-500.0,0.00025732,2]
[426742349,1782777031000,-500.0,0.00025732,2]
[426742347,1782777031000,-500.0,0.00025732,2]
[426742352,1782777031000,-500.0,0.00025732,2]
[426742350,1782777031000,-500.0,0.00025732,2]
[426742354,1782777031000,-500.0,0.00025732,2]
[426742345,1782777031000,-500.0,0.00025732,2]
[426742355,1782777031000,-500.0,0.00025732,2]
[426742351,1782777031000,-500.0,0.00025732,2]
[426742321,1782777031000,-500.0,0.00025732,2]
[426742326,1782777031000,-500.0,0.00025732,2]
[426742325,1782777031000,-500.0,0.00025732,2]
[426742328,1782777031000,-500.0,0.00025732,2]
[426742333,1782777031000,-500.0,0.00025732,2]
[426742335,1782777031000,-500.0,0.00025732,2]
[426742339,1782777031000,-500.0,0.00025732,2]
[426742337,1782777031000,-500.0,0.00025732,2]
[426742332,1782777031000,-500.0,0.00025732,2]
[426742377,1782777032000,-500.0,0.00025732,2]
[426742394,1782777032000,-500.0,0.00025732,2]
[426742382,1782777032000,-500.0,0.00025732,2]
[426742383,1782777032000,-500.0,0.00025732,2]
[426742376,1782777032000,-500.0,0.00025732,2]
[426742385,1782777032000,-500.0,0.00025732,2]
[426742391,1782777032000,-500.0,0.00025732,2]
[426742392,1782777032000,-500.0,0.00025732,2]
[426742396,1782777032000,-500.0,0.00025732,2]
[426742395,1782777032000,-500.0,0.00025732,2]
[426742386,1782777032000,-500.0,0.00025732,2]
[426742398,1782777032000,-300.0,0.00025732,2]
[426742390,1782777032000,-500.0,0.00025732,2]
[426742393,1782777032000,-421.58312896,0.00025732,2]
[426742369,1782777032000,-500.0,0.00025732,2]
[426742388,1782777032000,-500.0,0.00025732,2]
[426742374,1782777032000,-500.0,0.00025732,2]
[426742363,1782777032000,-500.0,0.00025732,2]
[426742371,1782777032000,-500.0,0.00025732,2]
[426742356,1782777032000,-500.0,0.00025732,2]
[426742357,1782777032000,-500.0,0.00025732,2]
[426742359,1782777032000,-500.0,0.00025732,2]
[426742358,1782777032000,-500.0,0.00025732,2]
[426742367,1782777032000,-500.0,0.00025732,2]
[426742366,1782777032000,-371.73507914,0.00025732,2]
[426742399,1782777032000,-500.0,0.00025733,2]
[426742361,1782777032000,-500.0,0.00025732,2]
[426742364,1782777032000,-500.0,0.00025732,2]
[426742360,1782777032000,-500.0,0.00025732,2]
[426742362,1782777032000,-500.0,0.00025732,2]
[426742365,1782777032000,-500.0,0.00025732,2]
[426742368,1782777032000,-500.0,0.00025732,2]
[426742370,1782777032000,-500.0,0.00025732,2]
[426742372,1782777032000,-500.0,0.00025732,2]
[426742379,1782777032000,-437.8071657,0.00025732,2]
[426742400,1782777032000,-3640.12023768,0.00025733,2]
[426742397,1782777032000,-500.0,0.00025732,2]
[426742403,1782777032000,-151.0,0.00025733,2]
[426742420,1782777032000,-500.0,0.00026115,2]
[426742424,1782777032000,-411.179636,0.00026115,2]
[426742429,1782777032000,-411.179636,0.00026115,2]
[426742427,1782777032000,-411.179636,0.00026115,2]
[426742428,1782777032000,-411.179636,0.00026115,2]
[426742430,1782777032000,-411.179636,0.00026115,2]
[426742426,1782777032000,-411.179636,0.00026115,2]
[426742422,1782777032000,-411.179636,0.00026115,2]
[426742433,1782777032000,-411.179636,0.00026115,2]
[426742431,1782777032000,-332.7967702,0.00026115,2]
[426742434,1782777032000,-411.179636,0.00026115,2]
[426742425,1782777032000,-411.179636,0.00026115,2]
[426742435,1782777032000,-96.58008457,0.00026115,2]
[426742436,1782777032000,-314.59955143,0.00026115,2]
[426742438,1782777032000,-119.94904043,0.00026115,2]
[426742402,1782777032000,-151.0,0.00025733,2]
[426742432,1782777032000,-78.3828658,0.00026115,2]
[426742417,1782777032000,-236.24004821,0.00025917,7]
[426742437,1782777032000,-411.179636,0.00026115,2]
[426742419,1782777032000,-188.48402725,0.00026015,2]
[426742421,1782777032000,-500.0,0.00026115,2]
[426742411,1782777032000,-239.001935,0.00025733,2]
[426742407,1782777032000,-151.0,0.00025733,2]
[426742404,1782777032000,-151.0,0.00025733,2]
[426742410,1782777032000,-151.0,0.00025733,2]
[426742405,1782777032000,-151.0,0.00025733,2]
[426742409,1782777032000,-151.0,0.00025733,2]
[426742408,1782777032000,-151.0,0.00025733,2]
[426742401,1782777032000,-151.0,0.00025733,2]
[426742423,1782777032000,-411.179636,0.00026115,2]
[426742413,1782777032000,-411.179636,0.00025734,2]
[426742412,1782777032000,-411.179636,0.00025734,2]
[426742414,1782777032000,-411.179636,0.00025734,2]
[426742415,1782777032000,-411.179636,0.00025734,2]
[426742416,1782777032000,-249.58826289,0.00025791,2]
[426742406,1782777032000,-151.0,0.00025733,2]
[426742418,1782777032000,-492.46663539,0.00026007,2]
[426742474,1782777043000,-151.0,0.0002702,2]
[426742475,1782777043000,-151.0,0.0002702,2]
[426742477,1782777043000,-226.106396,0.0002702,2]
[426742479,1782777043000,-2126.0,0.00027132,7]
[426742487,1782777043000,-163.910044,0.00027898,2]
[426742485,1782777043000,-1000.0,0.000275,2]
[426742489,1782777043000,-236.24004821,0.0002799,7]
[426742481,1782777043000,-1000.0,0.000275,2]
[426742482,1782777043000,-1000.0,0.000275,2]
[426742488,1782777043000,-1161.345792,0.00027949,2]
[426742490,1782777043000,-211.27278289,0.00028199,2]
[426742483,1782777043000,-1000.0,0.000275,2]
[426742480,1782777043000,-236.24004821,0.00027213,7]
[426742484,1782777043000,-1000.0,0.000275,2]
[426742478,1782777043000,-1033.52807093,0.00027021,2]
[426742491,1782777043000,-380.2910092,0.00028199,2]
[426742486,1782777043000,-188.48402722,0.00027615,2]
[426742476,1782777043000,-151.0,0.0002702,2]
[426742461,1782777043000,-151.0,0.00026116,2]
[426742471,1782777043000,-188.48402722,0.00026815,2]
[426742503,1782777043000,-194.63,0.00029015,15]
[426742455,1782777043000,-4372.83086647,0.00025854,2]
[426742456,1782777043000,-291.23059557,0.00026115,2]
[426742457,1782777043000,-411.179642,0.00026115,2]
[426742458,1782777043000,-500.0,0.00026115,2]
[426742463,1782777043000,-558.55850572,0.00026117,2]
[426742460,1782777043000,-151.0,0.00026116,2]
[426742473,1782777043000,-151.0,0.0002702,2]
[426742462,1782777043000,-294.66,0.00026116,2]
[426742465,1782777043000,-164.068075,0.00026581,2]
[426742466,1782777043000,-151.0,0.00026792,2]
[426742464,1782777043000,-236.24004821,0.00026435,7]
[426742467,1782777043000,-2216.0,0.00026793,2]
[426742469,1782777043000,-151.0,0.00026793,2]
[426742468,1782777043000,-186.0,0.00026793,2]
[426742472,1782777043000,-633.04341449,0.00027019,2]
[426742459,1782777043000,-158.242,0.00026116,12]
[426742493,1782777043000,-188.34233061,0.00028199,2]
[426742470,1782777043000,-151.0,0.00026793,2]
[426742496,1782777043000,-340.10337116,0.00028541,2]
[426742532,1782777043000,-10043.80352166,0.00029289,2]
[426742514,1782777043000,-166.16,0.00029164,15]
[426742517,1782777043000,-1719.08055147,0.00029198,2]
[426742509,1782777043000,-166.13,0.00029114,15]
[426742507,1782777043000,-152.15,0.00029064,15]
[426742518,1782777043000,-469.0,0.000292,2]
[426742523,1782777043000,-500.0,0.00029277,7]
[426742526,1782777043000,-260.65,0.00029279,3]
[426742525,1782777043000,-521.3,0.00029279,3]
[426742524,1782777043000,-1042.6,0.00029279,3]
[426742519,1782777043000,-500.0,0.00029207,7]
[426742522,1782777043000,-188.48402722,0.00029215,2]
[426742527,1782777043000,-781.98,0.00029279,3]
[426742528,1782777043000,-430.96,0.00029284,2]
[426742531,1782777043000,-2173.07,0.00029289,7]
[426742530,1782777043000,-500.0,0.00029284,7]
[426742520,1782777043000,-300.0,0.00029207,2]
[426742515,1782777043000,-165.47,0.00029165,15]
[426742510,1782777043000,-152.16,0.00029114,15]
[426742506,1782777043000,-236.24004824,0.00029027,7]
[426742495,1782777043000,-188.48402722,0.00028415,2]
[426742494,1782777043000,-1215.71941093,0.00028365,2]
[426742513,1782777043000,-339.0161951,0.00029118,2]
[426742499,1782777043000,-268.04168757,0.00029012,2]
[426742497,1782777043000,-208.92338497,0.00029,2]
[426742500,1782777043000,-511.68797427,0.00029013,7]
[426742501,1782777043000,-281.1,0.00029013,15]
[426742502,1782777043000,-152.15,0.00029014,15]
[426742498,1782777043000,-5701.11439402,0.00029,6]
[426742511,1782777043000,-165.45,0.00029115,15]
[426742504,1782777043000,-165.45,0.00029015,15]
[426742516,1782777043000,-7156.89721439,0.00029184,2]
[426742529,1782777043000,-500.0,0.00029284,7]
[426742521,1782777043000,-500.0,0.00029207,7]
[426742492,1782777043000,-318.56430063,0.00028199,2]
[426742508,1782777043000,-165.45,0.00029065,15]
[426742512,1782777043000,-203.48800595,0.00029118,2]
[426742505,1782777043000,-282.64,0.00029015,15]
[426746959,1782777125000,653.77565448,0.0001,2]
[426746978,1782777439000,862.62386615,0.00013,2]
[426746979,1782777449000,23483.60047937,7.6e-05,2]
[426746980,1782777449000,36303.74550842,7.6e-05,2]
[426746981,1782777457000,6990.82355648,0.00012,2]
[426746994,1782777630000,200.0,0.00029453,120]
[426746995,1782777656000,227.19,0.000298,120]
[426746997,1782777690000,200.0,0.00029453,120]
[426746998,1782777703000,811.61816818,0.00030137,30]
[426746999,1782777729000,-150.12955755,0.0001865,14]
[426747001,1782777746000,-529.73791866,0.00019406,2]
[426747002,1782777750000,200.0,0.00029416,120]
[426747003,1782777763000,-150.12955755,0.00019406,2]
[426747037,1782778144000,1000.0,0.000301,30]
[426747058,1782778162000,500.0,0.000301,30]
[426747059,1782778175000,704.96,0.000301,30]
[426747127,1782778231000,-471.30222205,0.00018088,2]
[426747125,1782778231000,-750.55607933,0.00018088,2]
[426747129,1782778231000,-333.82828281,0.0002,2]
[426747122,1782778231000,-5000.0,0.00017728,2]
[426747124,1782778231000,-2107.2544964,0.00017907,2]
[426747894,1782778246000,-43.81425808,0.0002,2]
[426747898,1782778246000,-254.54405755,0.000225,2]
[426747896,1782778246000,-904.29202396,0.000215,2]
[426747892,1782778246000,-1688.63021999,0.000198,2]
[426747890,1782778246000,-250.76642444,0.000198,2]
[426749835,1782779380000,400.0,0.00029289,30]
[426749836,1782779380000,360.73880941,0.00029289,30]
[426749837,1782779380000,375.5181879,0.00025915,30]
[426749838,1782779380000,332.36493768,0.00029289,30]
[426749839,1782779381000,400.0,0.00025915,30]
[426749864,1782779432000,-353.80006371,0.000225,2]
[426749862,1782779432000,-1688.63021999,0.0001595,2]
[426749863,1782779432000,-496.9681163,0.00016438,2]
[426749954,1782779441000,-676.07290524,0.00024178,2]
[426749948,1782779441000,-439.83887904,0.000225,2]
[426749950,1782779441000,-871.009344,0.00023917,2]
[426749952,1782779441000,-472.35756964,0.00024,2]
[426749960,1782779441000,-3064.9346386,0.00024842,2]
[426749958,1782779441000,-521.07251125,0.0002465,2]
[426749963,1782779441000,-500.0,0.00025,2]
[426749965,1782779441000,-4037.06258334,0.00025034,2]
[426749956,1782779441000,-1055.30755053,0.00024178,2]
[426750005,1782779442000,-500.0,0.00028172,2]
[426749997,1782779442000,-188.48402722,0.00028074,2]
[426749995,1782779442000,-158.35,0.00027397,2]
[426749993,1782779442000,-940.7699414,0.00026765,2]
[426749987,1782779442000,-186.0,0.00026158,2]
[426749991,1782779442000,-602.69545795,0.00026765,2]
[426749989,1782779442000,-365.9121323,0.00026765,2]